bitfinex/quotes_ETHUSD_20251023
["timestamp","ask_amount","ask_price","bid_price","bid_amount"]
[1761209649824,4.35420574,3896.5,3896.4,1e-08]
[1761209650326,4.35420574,3896.5,3890.8,0.12954173]
[1761209650327,0.2303,3893.8,3890.8,0.12954173]
[1761209650529,2.57009946,3890.9,3890.8,0.12954173]
[1761209650732,7.40354994,3890.9,3890.8,0.12954173]
[1761209651040,1.5552,3890.8,3889.7,3.303]
[1761209651241,4.12602626,3889.8,3889.7,3.303]
[1761209651538,2.10298385,3889.8,3889.7,3.303]
[1761209652141,4.67381011,3889.8,3889.7,3.303]
[1761209652442,2.10298385,3889.8,3889.7,3.303]
[1761209652609,2.10298385,3889.8,3889.7,4.1039]
[1761209653140,2.10298385,3889.8,3889.7,3.6333]
[1761209653309,2.10298385,3889.8,3889.7,3.303]
[1761209653707,4.67381011,3889.8,3889.7,3.303]
[1761209653935,2.10298385,3889.8,3889.7,3.303]
[1761209654617,0.54778385,3889.8,3889.7,3.303]
[1761209654849,3.11861011,3889.8,3889.7,3.303]
[1761209655366,0.54778385,3889.8,3889.7,3.303]
[1761209655662,0.54778385,3889.8,3889.7,3.7736]
[1761209657139,2.10298385,3889.8,3889.7,3.7736]
[1761209657556,2.10298385,3889.8,3889.7,3.7716]
[1761209658334,4.67381011,3889.8,3889.7,3.301]
[1761209658863,0.54778385,3889.8,3889.7,3.301]
[1761209659027,3.11861011,3889.8,3889.7,3.301]
[1761209659354,4.67381011,3889.8,3889.7,3.301]
[1761209659561,2.10298385,3889.8,3889.7,3.7716]
[1761209659859,0.54778385,3889.8,3889.7,4.14896]
[1761209660239,0.54778385,3889.8,3889.7,4.27776]
[1761209662435,3.11861011,3889.8,3889.7,3.4298]
[1761209662764,4.67381011,3889.8,3889.7,3.4298]
[1761209663176,4.67381011,3889.8,3889.4,0.4706]
[1761209663177,2.57100597,3889.6,3889.4,0.43268357]
[1761209663386,2.57100597,3889.6,3889.5,3.299]
[1761209663678,2.57100597,3889.6,3889.5,3.4278]
[1761209664640,2.32679997,3889.9,3889.5,3.4278]
[1761209664844,1.6942,3890.5,3889.5,3.4278]
[1761209665152,4.89756014,3889.9,3889.8,0.1288]
[1761209665355,2.57096881,3889.6,3889.4,0.4711]
[1761209665542,2.5709049,3889.7,3889.5,3.299]
[1761209665745,2.5709049,3889.7,3889.5,3.4278]
[1761209666085,2.57089235,3889.7,3889.6,0.4711]
[1761209666258,4.12603719,3889.8,3889.6,0.4711]
[1761209666454,4.12603719,3889.8,3889.7,0.1288]
[1761209667881,4.12523719,3889.8,3889.7,0.1288]
[1761209668658,2.57063026,3890.1,3889.7,0.1288]
[1761209668978,2.57080708,3889.9,3889.7,0.1288]
[1761209669310,2.57080708,3889.9,3889.5,3.299]
[1761209669512,2.57069456,3890.0,3889.8,0.1288]
[1761209669811,1.5552,3890.1,3889.9,3.296]
[1761209670000,0.139,3890.7,3889.9,3.296]
[1761209670320,2.570628,3890.1,3890.0,0.1288]
[1761209670474,2.57069408,3890.0,3889.9,3.296]
[1761209670895,2.57069408,3890.0,3889.9,3.4248]
[1761209671206,4.12589408,3890.0,3889.9,3.8564]
[1761209671505,4.12589408,3890.0,3889.9,3.4248]
[1761209672373,4.26489408,3890.0,3889.9,3.4248]
[1761209672797,4.26489408,3890.0,3889.9,3.4208]
[1761209676412,4.26489408,3890.0,3889.9,0.1288]
[1761209676709,4.26489408,3890.0,3889.6,0.002]
[1761209676710,4.12609235,3889.7,3889.6,0.002]
[1761209677008,4.12609235,3889.7,3889.6,0.487]
[1761209677305,4.44499235,3889.7,3889.6,0.487]
[1761209677678,4.12609235,3889.7,3889.6,0.487]
[1761209678079,4.12609235,3889.7,3889.6,0.002]
[1761209678281,4.22509235,3889.7,3889.6,0.002]
[1761209678880,4.73197235,3889.7,3889.6,0.002]
[1761209680790,2.57089235,3889.7,3889.6,0.002]
[1761209681109,2.57089235,3889.7,3889.6,3.297]
[1761209682898,1.5552,3889.7,3889.6,3.297]
[1761209683113,2.57066941,3890.1,3889.6,4.10166]
[1761209683286,2.57071597,3890.0,3889.7,0.4316]
[1761209683486,1.5552,3889.9,3889.7,0.4316]
[1761209683809,2.57055487,3890.3,3889.7,0.4316]
[1761209683990,0.1002,3890.2,3889.6,3.297]
[1761209684310,0.1002,3890.2,3889.6,0.002]
[1761209684311,2.57089235,3889.7,3889.6,0.002]
[1761209684515,2.57089235,3889.7,3889.6,3.297]
[1761209686301,2.66989235,3889.7,3889.6,3.297]
[1761209686492,4.12609235,3889.7,3889.6,3.297]
[1761209688222,4.35389235,3889.7,3889.6,3.297]
[1761209692120,4.35309235,3889.7,3889.6,3.297]
[1761209693819,4.35309235,3889.7,3889.6,0.002]
[1761209694213,4.12529235,3889.7,3889.6,0.002]
[1761209696323,4.12609235,3889.7,3889.6,0.4336]
[1761209700117,4.12609235,3889.7,3889.6,0.002]
[1761209700557,4.12609235,3889.7,3889.6,0.4543]
[1761209701711,4.12609235,3889.7,3889.6,0.002]
[1761209702640,4.12609235,3889.7,3889.6,0.4543]
[1761209703611,4.12609235,3889.7,3889.6,0.002]
[1761209705047,4.12609235,3889.7,3889.6,0.4543]
[1761209705547,4.12609235,3889.7,3889.6,0.002]
[1761209712641,4.12709235,3889.7,3889.6,0.002]
[1761209714074,4.22609235,3889.7,3889.6,0.002]
[1761209714279,4.12709235,3889.7,3889.6,0.002]
[1761209716573,4.12629235,3889.7,3889.6,0.002]
[1761209717881,4.12629235,3889.7,3889.3,0.002]
[1761209717882,2.57102455,3889.5,3889.3,0.002]
[1761209718111,2.57109065,3889.4,3889.3,0.002]
[1761209718263,3.19101399,3889.4,3889.3,0.002]
[1761209718448,4.74621399,3889.4,3889.3,0.002]
[1761209718648,4.35409065,3889.4,3889.3,0.002]
[1761209718881,4.35409065,3889.4,3888.9,3.282]
[1761209718882,2.5713551,3889.0,3888.9,3.282]
[1761209719176,4.1265551,3889.0,3888.9,3.282]
[1761209719390,4.3543551,3889.0,3888.9,0.002]
[1761209719968,2.5716196,3888.6,3888.5,3.28]
[1761209720169,4.1268196,3888.6,3888.5,3.28]
[1761209720362,4.4717196,3888.6,3888.5,3.28]
[1761209721191,4.4717196,3888.6,3887.6,0.2247]
[1761209721192,2.57221493,3887.7,3887.6,0.2247]
[1761209721389,4.12741493,3887.7,3887.6,3.5047]
[1761209721688,4.12741493,3887.7,3887.6,3.28]
[1761209721861,4.25602866,3887.7,3887.6,3.28]
[1761209722057,4.12741493,3887.7,3887.6,3.28]
[1761209722489,1.5552,3887.7,3887.6,3.7323]
[1761209722663,4.12741493,3887.7,3887.6,4.24721]
[1761209723464,1.5552,3887.7,3886.0,0.2261]
[1761209723659,1.7785,3887.8,3886.1,0.7203]
[1761209723865,0.2233,3887.8,3886.1,0.7203]
[1761209724065,2.57297066,3886.6,3886.2,0.4523]
[1761209724370,2.57241343,3887.4,3886.2,0.4523]
[1761209724371,2.57287641,3886.8,3886.2,0.4523]
[1761209724685,2.75841493,3887.7,3886.2,0.4523]
[1761209724686,2.57228109,3887.6,3886.2,0.4523]
[1761209724885,1.5552,3887.3,3886.2,0.4523]
[1761209725195,2.57314154,3886.3,3886.2,0.4523]
[1761209725565,2.57269083,3887.0,3886.2,0.4523]
[1761209725566,2.57312966,3886.4,3886.2,0.4523]
[1761209725787,2.57314154,3886.3,3886.2,0.4523]
[1761209726375,1.5552,3887.3,3886.2,0.4523]
[1761209726698,2.57294827,3886.6,3886.2,0.4523]
[1761209726907,2.57254579,3887.2,3886.2,0.4523]
[1761209727063,1.5552,3887.1,3886.2,0.4523]
[1761209727267,2.57299377,3886.6,3886.2,0.4523]
[1761209728001,2.57302353,3886.5,3886.2,0.4523]
[1761209728299,2.57301242,3886.5,3886.2,0.4523]
[1761209728768,2.57307786,3886.4,3886.2,0.4523]
[1761209729283,2.57307323,3886.5,3886.2,0.4523]
[1761209729478,0.1862,3887.4,3886.2,0.4523]
[1761209729479,2.57247961,3887.3,3886.2,0.4523]
[1761209729677,2.57314154,3886.3,3886.2,0.4523]
[1761209730194,2.57247961,3887.3,3886.2,0.4523]
[1761209730195,1.5552,3887.3,3886.2,0.4523]
[1761209730396,2.57307318,3886.5,3886.2,0.4523]
[1761209730596,2.57308806,3886.4,3886.2,0.4523]
[1761209731994,2.57301451,3886.5,3886.2,0.4523]
[1761209732466,2.57307544,3886.4,3886.2,0.4523]
[1761209732671,2.57302792,3886.5,3886.2,0.4523]
[1761209732965,2.5729608,3886.6,3886.2,0.4523]
[1761209733165,2.57320776,3886.2,3886.1,0.27]
[1761209733471,2.57312291,3886.4,3886.2,0.6972]
[1761209733670,2.57314154,3886.3,3886.2,0.6972]
[1761209733879,2.57314154,3886.3,3886.2,0.2273]
[1761209734624,2.57320776,3886.2,3886.1,0.002]
[1761209734769,4.32030776,3886.2,3886.1,0.002]
[1761209735106,4.12840776,3886.2,3886.1,0.002]
[1761209735667,4.32030776,3886.2,3886.1,0.002]
[1761209739690,20.45347578,3886.2,3886.1,0.002]
[1761209739896,8.11318776,3886.2,3886.1,0.002]
[1761209740817,7.60630776,3886.2,3886.1,0.002]
[1761209740986,7.60550776,3886.2,3886.1,0.002]
[1761209741310,4.31950776,3886.2,3886.1,0.002]
[1761209743605,4.12760776,3886.2,3886.1,0.002]
[1761209743810,2.57320776,3886.2,3886.1,0.002]
[1761209744191,2.76510776,3886.2,3886.1,0.002]
[1761209744608,2.89390776,3886.2,3886.1,0.002]
[1761209745107,4.44910776,3886.2,3886.1,0.002]
[1761209745527,4.25720776,3886.2,3886.1,0.002]
[1761209747416,4.44910776,3886.2,3886.1,0.002]
[1761209750545,4.25720776,3886.2,3886.1,0.002]
[1761209752747,4.12840776,3886.2,3886.1,0.2293]
[1761209753044,4.12840776,3886.2,3886.1,0.6992]
[1761209753248,4.12840776,3886.2,3886.1,0.002]
[1761209753636,2.57320776,3886.2,3886.1,0.002]
[1761209756042,4.12840776,3886.2,3886.1,0.002]
[1761209756240,4.12840776,3886.2,3886.1,0.6992]
[1761209756449,1.5552,3886.2,3886.1,0.6992]
[1761209756625,0.1308,3887.4,3886.1,0.6992]
[1761209756626,2.57190732,3888.2,3886.1,0.6992]
[1761209756825,2.57285442,3886.8,3886.2,0.4699]
[1761209757027,2.57268566,3887.0,3886.3,0.49473141]
[1761209757247,2.57190732,3888.2,3886.3,0.49473141]
[1761209757248,0.1953,3888.2,3886.3,0.49473141]
[1761209757448,2.57266195,3887.1,3886.4,2.8229]
[1761209757633,1.5552,3887.2,3886.5,3.56829]
[1761209757840,2.57294293,3886.6,3886.5,3.286]
[1761209758020,1.5552,3887.1,3886.1,0.2293]
[1761209758021,2.57320776,3886.2,3886.1,0.2293]
[1761209758224,12.34028802,3887.4,3886.1,0.2293]
[1761209758225,0.196,3887.6,3886.2,0.4699]
[1761209758430,2.57300188,3886.6,3886.2,0.4699]
[1761209758957,1.5552,3886.4,3886.2,0.4699]
[1761209759158,1.5552,3886.4,3886.1,0.2293]
[1761209759343,4.12840776,3886.2,3886.1,0.002]
[1761209759556,1.5552,3886.2,3886.1,0.6794]
[1761209760764,4.12840776,3886.2,3886.1,0.002]
[1761209760956,4.12840776,3886.2,3886.1,0.837]
[1761209761541,4.12840776,3886.2,3886.1,0.002]
[1761209761742,4.32510776,3886.2,3886.1,0.002]
[1761209762157,4.12840776,3886.2,3886.1,0.002]
[1761209763250,4.32510776,3886.2,3886.1,0.002]
[1761209764658,4.32610776,3886.2,3886.1,0.002]
[1761209764862,4.12940776,3886.2,3886.1,0.002]
[1761209765445,4.12860776,3886.2,3886.1,0.002]
[1761209766456,4.25740776,3886.2,3886.1,0.002]
[1761209768969,4.12860776,3886.2,3886.1,0.002]
[1761209769167,2.57420776,3886.2,3886.1,0.002]
[1761209769370,2.57420776,3886.2,3886.1,0.4548]
[1761209769671,2.57420776,3886.2,3886.1,0.5836]
[1761209769862,0.001,3886.2,3886.1,0.5836]
[1761209770171,2.57420776,3886.2,3886.1,0.5836]
[1761209770374,4.12940776,3886.2,3886.1,0.5836]
[1761209773349,1.5562,3886.2,3886.1,0.5836]
[1761209774075,4.12940776,3886.2,3886.1,0.5836]
[1761209774274,1.5562,3886.2,3886.1,0.5836]
[1761209774768,4.12940776,3886.2,3886.1,0.5836]
[1761209775979,1.5562,3886.2,3886.1,0.5836]
[1761209776178,4.12940776,3886.2,3886.1,0.5836]
[1761209776576,1.5562,3886.2,3886.1,0.5836]
[1761209777271,4.12940776,3886.2,3886.1,0.5836]
[1761209777861,4.12940776,3886.2,3886.1,3.8676]
[1761209779062,4.12940776,3886.2,3886.1,3.4148]
[1761209779368,1.5562,3886.2,3886.1,3.4148]
[1761209779569,0.001,3886.2,3886.1,4.23174]
[1761209780263,2.57420776,3886.2,3886.1,4.23174]
[1761209781982,2.57420776,3886.2,3886.1,0.94774]
[1761209782150,2.57420776,3886.2,3886.1,1.512]
[1761209782355,4.30950776,3886.2,3886.1,1.512]
[1761209782556,4.43830776,3886.2,3886.1,1.512]
[1761209782774,4.25820776,3886.2,3886.1,1.512]
[1761209784885,4.25820776,3886.2,3886.1,0.002]
[1761209786581,4.12940776,3886.2,3886.1,0.002]
[1761209786782,4.12940776,3886.2,3886.1,0.1308]
[1761209787187,4.25820776,3886.2,3886.1,0.253]
[1761209787963,3.95820776,3886.2,3886.1,0.253]
[1761209788371,3.95820776,3886.2,3886.1,3.282]
[1761209789258,3.95820776,3886.2,3886.1,0.002]
[1761209789465,3.95820776,3886.2,3886.1,3.282]
[1761209789871,3.95740776,3886.2,3886.1,0.002]
[1761209790096,3.95740776,3886.2,3886.1,3.281]
[1761209790395,3.95740776,3886.2,3886.1,3.27781]
[1761209790896,2.57340641,3885.9,3885.8,0.002]
[1761209791199,2.57340641,3885.9,3885.8,3.7311]
[1761209792202,2.57340641,3885.9,3885.8,3.28]
[1761209792586,2.57340641,3885.9,3885.8,3.7311]
[1761209793219,2.57340641,3885.9,3885.8,3.28]
[1761209793974,2.57340641,3885.9,3885.8,3.7311]
[1761209794174,2.57340641,3885.9,3885.8,0.4531]
[1761209794371,0.1288,3886.2,3885.8,3.7301]
[1761209794595,1.5552,3886.1,3885.9,0.38609]
[1761209794795,4.12859579,3886.0,3885.9,0.4511]
[1761209794973,4.12859579,3886.0,3885.9,0.5799]
[1761209795993,2.57323425,3886.2,3885.9,0.5799]
[1761209796298,4.12847397,3886.1,3886.0,0.4511]
[1761209800695,4.12847397,3886.1,3886.0,0.4531]
[1761209800899,1.684,3886.5,3886.0,0.8651234]
[1761209801098,0.001,3886.1,3886.0,0.51709]
[1761209801806,0.001,3886.1,3886.0,0.96819]
[1761209804407,0.001,3886.1,3886.0,3.54153019]
[1761209804999,0.001,3886.1,3886.0,1.47507]
[1761209805509,0.001,3886.1,3886.0,4.04841019]
[1761209811891,0.001,3886.1,3886.0,4.07414359]
[1761209813204,0.001,3886.1,3886.0,4.04841019]
[1761209814393,0.001,3886.1,3886.0,1.47507]
[1761209814609,0.0002,3886.1,3886.0,1.47507]
[1761209815005,0.0002,3886.1,3886.0,4.24019]
[1761209816099,0.0002,3886.1,3886.0,4.23919]
[1761209817323,0.0002,3886.1,3886.0,0.96819]
[1761209817523,0.0002,3886.1,3886.0,0.1308]
[1761209817698,0.0002,3886.1,3886.0,3.4008]
[1761209818024,2.57347397,3886.1,3886.0,3.4008]
[1761209818827,0.0002,3886.1,3886.0,3.4008]
[1761209820814,2.57347397,3886.1,3886.0,3.4008]
[1761209821642,2.57347397,3886.1,3886.0,3.271]
[1761209822014,0.0002,3886.1,3886.0,3.3998]
[1761209822214,0.0002,3886.1,3886.0,3.78602]
[1761209822441,0.0002,3886.1,3886.0,4.24442]
[1761209823227,2.57347397,3886.1,3886.0,3.78602]
[1761209823444,2.57347397,3886.1,3886.0,3.3998]
[1761209824248,0.0002,3886.1,3886.0,3.3998]
[1761209824651,0.1839,3886.1,3886.0,3.3998]
[1761209825528,2.75717397,3886.1,3886.0,3.3998]
[1761209827247,0.1839,3886.1,3886.0,3.3998]
[1761209828947,0.0002,3886.1,3886.0,3.3998]
[1761209829154,0.0002,3886.1,3886.0,4.19858]
[1761209829316,0.0002,3886.1,3886.0,3.74018]
[1761209831350,0.0002,3886.1,3886.0,4.19858]
[1761209832148,0.0002,3886.1,3886.0,3.74018]
[1761209832927,0.0002,3886.1,3886.0,4.19858]
[1761209833459,0.0002,3886.1,3886.0,6.77192019]
[1761209833752,0.0002,3886.1,3886.0,7.27880019]
[1761209835930,0.0002,3886.1,3886.0,7.27680019]
[1761209838746,0.0002,3886.1,3886.0,7.27580019]
[1761209838954,0.0004,3886.5,3886.0,6.68860019]
[1761209839143,0.0004,3886.5,3886.1,1.35806002]
[1761209839341,0.0004,3886.5,3886.4,0.1288]
[1761209839545,0.2008,3886.5,3886.4,3.3948]
[1761209841241,0.0004,3886.5,3886.4,3.3948]
[1761209841445,0.2008,3886.5,3886.4,3.3948]
[1761209841645,0.0004,3886.5,3886.4,3.92970291]
[1761209841839,0.0004,3886.5,3886.4,6.63157824]
[1761209842165,0.0004,3886.5,3886.4,4.05850291]
[1761209842345,0.2008,3886.5,3886.4,4.05850291]
[1761209842744,0.0004,3886.5,3886.4,6.63157824]
[1761209844468,0.0004,3886.5,3886.4,7.13845824]
[1761209844665,0.0004,3886.5,3886.4,7.59685824]
[1761209845239,0.0004,3886.5,3886.4,7.13845824]
[1761209847243,0.0004,3886.5,3886.4,7.58015824]
[1761209850640,0.0004,3886.5,3886.4,7.58295824]
[1761209851265,0.0004,3886.5,3886.4,7.13845824]
[1761209852245,0.0004,3886.5,3886.4,7.58295824]
[1761209854842,0.0004,3886.5,3886.4,7.58495824]
[1761209855046,0.0004,3886.5,3886.4,3.87445824]
[1761209855240,0.0004,3886.5,3886.4,0.79450291]
[1761209855464,0.1977,3886.5,3886.4,5.96987533]
[1761209855664,0.1977,3886.5,3886.4,6.47675533]
[1761209856060,0.0004,3886.5,3886.4,6.47675533]
[1761209856455,0.1977,3886.5,3886.4,6.47675533]
[1761209857265,0.0004,3886.5,3886.4,6.47675533]
[1761209857944,0.1977,3886.5,3886.4,7.38174627]
[1761209858550,0.0004,3886.5,3886.4,7.38174627]
[1761209858959,0.1977,3886.5,3886.4,7.38174627]
[1761209859886,0.1977,3886.5,3886.4,1.03579094]
[1761209860078,0.1977,3886.5,3886.4,3.3968]
[1761209861277,0.0004,3886.5,3886.4,6.47675533]
[1761209861467,0.0004,3886.5,3886.4,3.3968]
[1761209861668,0.1977,3886.5,3886.4,3.3968]
[1761209862074,0.1977,3886.5,3886.4,5.96987533]
[1761209862861,0.1977,3886.5,3886.4,3.3968]
[1761209863063,0.0004,3886.5,3886.4,6.84992513]
[1761209863267,0.0004,3886.5,3886.4,7.33107438]
[1761209863456,0.0006,3886.6,3886.5,3.07988913]
[1761209864566,0.1979,3886.6,3886.5,3.07988913]
[1761209865575,0.1979,3886.6,3886.5,2.57300913]
[1761209865781,0.1979,3886.6,3886.5,5.83800913]
[1761209869373,0.1979,3886.6,3886.5,3.265]
[1761209869594,0.1979,3886.6,3886.5,5.83800913]
[1761209869799,0.1979,3886.6,3886.5,6.43489004]
[1761209874800,0.1979,3886.6,3886.5,3.86188091]
[1761209875299,0.1979,3886.6,3886.5,6.43489004]
[1761209878879,0.1979,3886.6,3886.5,3.86188091]
[1761209879081,0.1979,3886.6,3886.5,6.43489004]
[1761209879277,0.0006,3886.6,3886.5,6.43489004]
[1761209879484,0.0006,3886.6,3886.5,6.89169004]
[1761209879682,0.0006,3886.6,3886.5,7.39857004]
[1761209887407,0.0006,3886.6,3886.5,11.26837004]
[1761209887790,0.0008,3886.9,3886.8,2.57281053]
[1761209888128,0.0008,3886.9,3886.8,7.98609745]
[1761209888293,0.0008,3886.9,3886.8,8.11489745]
[1761209892130,0.0008,3886.9,3886.8,8.57169745]
[1761209892893,0.0008,3886.9,3886.8,8.11489745]
[1761209893094,0.0008,3886.9,3886.8,8.57169745]
[1761209893590,0.0008,3886.9,3886.8,8.11489745]
[1761209893799,0.0008,3886.9,3886.8,8.57169745]
[1761209896311,0.0008,3886.9,3886.8,8.57169745]
[1761209898017,0.0008,3886.9,3886.8,10.12689745]
[1761209905625,0.0008,3886.9,3886.8,11.86189745]
[1761209906550,0.0008,3886.9,3886.8,9.66909745]
[1761209906858,0.4157,3886.9,3886.8,8.11389745]
[1761209907027,0.0008,3886.9,3886.8,4.34301745]
[1761209907236,0.1926,3886.9,3886.8,5.96561053]
[1761209907562,0.1926,3886.9,3886.8,6.47249053]
[1761209908417,0.0008,3886.9,3886.8,6.47249053]
[1761209908819,0.0008,3886.9,3886.8,3.20849053]
[1761209909015,0.416,3886.9,3886.8,0.1288]
[1761209909234,0.416,3886.9,3886.8,3.3928]
[1761209909434,1.18805272,3886.9,3886.8,3.3928]
[1761209912748,1.18725272,3886.9,3886.8,3.3928]
[1761209913538,0.77205272,3886.9,3886.8,5.96561053]
[1761209913722,0.001,3887.0,3886.9,2.57274434]
[1761209913923,0.001,3887.0,3886.9,3.02834434]
[1761209914127,0.001,3887.0,3886.9,2.57274434]
[1761209915852,0.001,3887.0,3886.9,3.02834434]
[1761209916068,0.001,3887.0,3886.9,5.11615178]
[1761209916237,0.001,3887.0,3886.9,6.28399084]
[1761209916425,0.001,3887.0,3886.9,4.72879084]
[1761209919155,0.001,3887.0,3886.9,8.59859084]
[1761209920449,0.001,3887.0,3886.9,11.86259084]
[1761209923066,0.001,3887.0,3886.9,1.1935665]
[1761209923229,0.001,3887.0,3886.9,7.02931084]
[1761209923635,0.001,3887.0,3886.9,7.48491084]
[1761209925561,0.001,3887.0,3886.9,7.99179084]
[1761209926075,0.001,3887.0,3886.9,7.53619084]
[1761209926379,0.001,3887.0,3886.9,8.12059084]
[1761209926556,0.001,3887.0,3886.9,7.15811084]
[1761209927579,0.001,3887.0,3886.9,0.1288]
[1761209927782,0.10592288,3887.0,3886.9,3.3918]
[1761209928884,0.28622288,3887.0,3886.9,3.3918]
[1761209929674,0.10592288,3887.0,3886.9,3.3918]
[1761209930276,0.28622288,3887.0,3886.9,3.3918]
[1761209933091,2.85890103,3887.0,3886.9,3.3918]
[1761209933310,0.28622288,3887.0,3886.9,3.3918]
[1761209933801,0.28622288,3887.0,3886.9,0.1288]
[1761209934003,0.28622288,3887.0,3886.9,3.3918]
[1761209935288,0.10592288,3887.0,3886.9,3.3918]
[1761209936885,0.10512288,3887.0,3886.9,3.3918]
[1761209939672,2.85810103,3887.0,3886.9,3.3918]
[1761209940182,0.10512288,3887.0,3886.9,3.3938]
[1761209940780,0.28542288,3887.0,3886.9,3.3938]
[1761209940987,2.85810103,3887.0,3886.9,3.3938]
[1761209942368,0.28542288,3887.0,3886.9,3.3938]
[1761209942690,0.10512288,3887.0,3886.9,3.3938]
[1761209943597,2.67780103,3887.0,3886.9,3.3938]
[1761209943786,0.10512288,3887.0,3886.9,3.3938]
[1761209944181,2.67780103,3887.0,3886.9,3.3938]
[1761209944390,2.85810103,3887.0,3886.9,3.3938]
[1761209944802,0.28542288,3887.0,3886.9,3.3938]
[1761209945200,0.10512288,3887.0,3886.9,3.3938]
[1761209945816,0.28542288,3887.0,3886.9,3.3938]
[1761209946614,2.85810103,3887.0,3886.9,3.3938]
[1761209947293,4.41330103,3887.0,3886.9,3.265]
[1761209957192,4.41330103,3887.0,3886.9,3.3938]
[1761209958622,8.70162526,3887.0,3886.9,3.3938]
[1761209959133,4.41330103,3887.0,3886.9,3.3938]
[1761209961390,4.41250103,3887.0,3886.9,3.3938]
[1761209965827,4.41250103,3887.0,3886.9,3.265]
[1761209969296,4.23220103,3887.0,3886.9,3.265]
[1761209969502,4.41250103,3887.0,3886.9,3.265]
[1761209973019,4.41350103,3887.0,3886.9,3.265]
[1761209974535,8.70182526,3887.0,3886.9,3.265]
[1761209974728,8.83062526,3887.0,3886.9,3.265]
[1761209979077,2.67800103,3887.0,3886.9,0.002]
[1761209979363,4.41350103,3887.0,3886.9,0.002]
[1761209982539,4.23320103,3887.0,3886.9,0.002]
[1761209985877,4.23240103,3887.0,3886.9,0.002]
[1761209990252,4.41270103,3887.0,3886.9,0.002]
[1761209991004,4.23240103,3887.0,3886.9,0.002]
[1761209995486,2.67720103,3887.0,3886.9,0.002]
[1761209995664,2.67720103,3887.0,3886.9,0.4526]
[1761209995865,2.67720103,3887.0,3886.9,0.002]
[1761209996398,0.10452288,3887.0,3886.9,0.4526]
[1761209996767,2.67720103,3887.0,3886.9,0.4526]
[1761209999075,2.67720103,3887.0,3886.9,0.002]
[1761209999477,2.67720103,3887.0,3886.9,0.4756]
[1761210001565,2.67720103,3887.0,3886.9,0.002]
[1761210001794,2.85850103,3887.0,3886.9,0.002]
[1761210002094,2.85850103,3887.0,3886.9,3.262]
[1761210002397,2.67720103,3887.0,3886.9,3.262]
[1761210005207,2.67720103,3887.0,3886.9,3.7356]
[1761210005507,2.67720103,3887.0,3886.9,3.3908]
[1761210005682,2.67720103,3887.0,3886.9,3.262]
[1761210005877,4.41370103,3887.0,3886.9,3.262]
[1761210007332,4.23240103,3887.0,3886.9,3.262]
[1761210008895,4.23240103,3887.0,3886.9,3.8644]
[1761210009288,0.10452288,3887.0,3886.9,4.25084]
[1761210010115,0.001,3887.0,3886.9,4.25084]
[1761210010330,0.0002,3887.0,3886.9,7.33046434]
[1761210010476,0.0002,3887.0,3886.9,4.75772]
[1761210010808,0.0002,3887.0,3886.9,4.25084]
[1761210012496,0.0002,3887.0,3886.9,3.77724]
[1761210012702,0.0002,3887.0,3886.9,4.25084]
[1761210014622,0.0002,3887.0,3886.9,6.82358434]
[1761210015139,0.0002,3887.0,3886.9,4.25084]
[1761210015502,0.0002,3887.0,3886.9,4.27656744]
[1761210016007,0.0002,3887.0,3886.9,4.25084]
[1761210017020,0.0002,3887.0,3886.9,6.82358434]
[1761210017938,0.0002,3887.0,3886.9,7.33046434]
[1761210022055,0.0002,3887.0,3886.9,4.75772]
[1761210022255,0.0002,3887.0,3886.9,7.33046434]
[1761210022758,0.0002,3887.0,3886.9,4.75772]
[1761210029477,0.0002,3887.0,3886.9,4.28212]
[1761210032153,0.0002,3887.0,3886.9,4.71342]
[1761210034392,2.74477815,3887.0,3886.9,0.1308]
[1761210034593,5.0720567,3887.0,3886.9,0.1308]
[1761210034795,5.0712567,3887.0,3886.9,0.002]
[1761210038693,5.0722567,3887.0,3886.9,0.002]
[1761210039274,5.0722567,3887.0,3886.5,1e-08]
[1761210039275,2.80924293,3886.6,3886.5,1e-08]
[1761210039697,4.74464293,3886.6,3886.5,1e-08]
[1761210039907,4.84762092,3886.6,3886.5,1e-08]
[1761210040501,4.12860641,3885.9,3884.3,1.736]
[1761210040797,2.57347264,3885.8,3885.7,1e-08]
[1761210041098,4.27497264,3885.8,3885.7,1e-08]
[1761210044809,4.40377264,3885.8,3885.7,1e-08]
[1761210045437,5.17627863,3885.8,3885.7,1e-08]
[1761210045808,5.04747863,3885.8,3885.7,1e-08]
[1761210048413,5.04747863,3885.8,3885.5,0.1288]
[1761210048414,2.57393632,3885.1,3885.0,0.915]
[1761210048743,4.12913632,3885.1,3885.0,1.0438]
[1761210048942,4.27543632,3885.1,3885.0,1.0438]
[1761210049262,2.57440016,3884.4,3884.3,1.736]
[1761210049428,2.57440016,3884.4,3884.3,4.995]
[1761210049629,2.57440016,3884.4,3884.3,5.77692762]
[1761210052044,4.22860016,3884.4,3884.3,5.1238]
[1761210052745,4.12960016,3884.4,3884.3,4.995]
[1761210053446,4.90221756,3884.4,3884.3,4.995]
[1761210056276,4.90221756,3884.4,3884.3,3.261]
[1761210057062,4.90221756,3884.4,3884.3,3.6923]
[1761210057978,4.90221756,3884.4,3884.3,3.261]
[1761210058151,4.90221756,3884.4,3884.3,3.6923]
[1761210059251,4.90141756,3884.4,3884.3,3.261]
[1761210059779,4.90141756,3884.4,3884.3,0.002]
[1761210060071,5.00041756,3884.4,3884.3,0.002]
[1761210060240,4.12986529,3884.0,3883.9,0.002]
[1761210060941,4.44836529,3884.0,3883.9,0.002]
[1761210061366,4.34936529,3884.0,3883.9,0.002]
[1761210061572,4.34936529,3884.0,3883.9,0.4614]
[1761210062774,4.12986529,3884.0,3883.9,0.5902]
[1761210062973,4.12986529,3884.0,3883.9,0.97522]
[1761210064374,4.12986529,3884.0,3883.9,0.5902]